fUSD/lending_fUSD_20260405
["ID","MTS","AMOUNT","RATE_DAILY","PERIOD"]
[419752450,1775353896146,-2504.39,0.00035726,9]
[419752451,1775353896155,-500.0,0.00035726,9]
[419752452,1775353896165,-500.0,0.00035726,9]
[419752453,1775353896174,-500.0,0.00035726,9]
[419752454,1775353896184,-500.0,0.00035726,9]
[419752455,1775353896193,-500.0,0.00035726,9]
[419752456,1775353896202,-500.0,0.00035726,9]
[419752457,1775353896212,-1345.46,0.00035726,9]
[419752458,1775353896221,-1209.88,0.00035726,9]
[419752459,1775353896231,-14562.7,0.00035726,9]
[419752460,1775353896240,-579.06,0.00035726,9]
[419752461,1775353896249,-1263.0,0.00035737,2]
[419752462,1775353896258,-415.0,0.00035737,2]
[419752463,1775353896267,-3770.0,0.00035737,2]
[419752464,1775353896276,-2810.0,0.00035744,11]
[419752465,1775353896286,-2810.0,0.00035789,11]
[419752466,1775353896295,-11338.58,0.00035797,30]
[419752467,1775353896305,-176.857268,0.00035832,14]
[419752468,1775353896314,-535.47084436,0.00035834,9]
[419752469,1775353896323,-535.47084435,0.00035834,9]
[419752470,1775353896333,-1000.0,0.00035835,2]
[419752471,1775353896343,-721.26,0.00035835,9]
[419752472,1775353896352,-500.0,0.00035835,9]
[419752473,1775353896361,-501.05668945,0.00035835,9]
[419752474,1775353896371,-639.69394454,0.00035835,9]
[419752475,1775353896380,-500.0,0.00035835,9]
[419752476,1775353896390,-500.0,0.00035835,9]
[419752477,1775353896400,-503.66145479,0.00035835,9]
[419752478,1775353896409,-501.21678272,0.00035835,9]
[419752479,1775353896418,-588.14905936,0.00035835,9]
[419752480,1775353896428,-500.0,0.00035835,9]
[419752481,1775353896438,-500.0,0.00035835,9]
[419752482,1775353896447,-1688.67,0.00035835,9]
[419752483,1775353896456,-500.0,0.00035835,9]
[419752484,1775353896465,-938.11,0.00035835,9]
[419752485,1775353896475,-500.0,0.00035835,9]
[419752486,1775353896484,-500.0,0.00035835,9]
[419752487,1775353896494,-500.0,0.00035835,9]
[419752488,1775353896503,-1840.87,0.00035835,9]
[419752489,1775353896512,-500.0,0.00035835,9]
[419752490,1775353896522,-500.0,0.00035835,9]
[419752491,1775353896531,-500.0,0.00035835,9]
[419752492,1775353896540,-500.0,0.00035835,9]
[419752493,1775353896550,-1500.19,0.00035835,9]
[419752494,1775353896559,-500.0,0.00035835,9]
[419752495,1775353896568,-407.8629468,0.00035835,9]
[419752496,1775353896578,-838.91,0.00035835,9]
[419752497,1775353896588,-532.88,0.00035835,9]
[419752498,1775353896597,-526.25,0.00035835,9]
[419752499,1775353896607,-968.52,0.00035835,9]
[419752500,1775353896616,-500.0,0.00035835,9]
[419752501,1775353896626,-435.24857029,0.00035835,9]
[419752502,1775353896637,-721.72,0.00035835,9]
[419752503,1775353896647,-500.0,0.00035835,9]
[419752504,1775353896660,-500.0,0.00035835,9]
[419752505,1775353896669,-500.0,0.00035835,9]
[419752506,1775353896678,-500.0,0.00035835,9]
[419752507,1775353896687,-500.0,0.00035835,9]
[419752508,1775353896696,-500.0,0.00035835,9]
[419752509,1775353896705,-739.39,0.00035835,9]
[419752510,1775353896715,-1454.17,0.00035835,9]
[419752511,1775353896725,-500.0,0.00035835,2]
[419752512,1775353896736,-500.0,0.00035835,9]
[419752513,1775353896746,-500.0,0.00035835,9]
[419752514,1775353896756,-1198.21,0.00035835,9]
[419752515,1775353896766,-695.01,0.00035835,9]
[419752516,1775353896776,-1157.87,0.00035835,9]
[419752517,1775353896786,-500.0,0.00035835,9]
[419752518,1775353896796,-500.0,0.00035835,9]
[419752519,1775353896806,-216.97175303,0.00035835,9]
[419752520,1775353896815,-690.69,0.00035835,9]
[419752521,1775353896824,-500.0,0.00035835,9]
[419752522,1775353896835,-500.0,0.00035835,9]
[419752523,1775353896844,-810.45,0.00035835,9]
[419752524,1775353896853,-500.0,0.00035835,9]
[419752525,1775353896863,-1157.19,0.00035835,9]
[419752526,1775353896872,-500.0,0.00035835,9]
[419752527,1775353896881,-666.9,0.00035835,9]
[419752528,1775353896891,-500.0,0.00035835,9]
[419752529,1775353896900,-1097.67,0.00035835,9]
[419752530,1775353896910,-500.0,0.00035835,9]
[419752531,1775353896920,-554.39,0.00035835,9]
[419752532,1775353896929,-500.0,0.00035835,9]
[419752533,1775353896938,-500.0,0.00035835,9]
[419752534,1775353896947,-500.0,0.00035835,9]
[419752535,1775353896957,-1070.31,0.00035835,9]
[419752536,1775353896966,-509.2842189,0.00035835,9]
[419752537,1775353896975,-500.0,0.00035835,9]
[419752538,1775353896985,-1249.75,0.00035835,9]
[419752539,1775353896994,-659.27,0.00035835,9]
[419752540,1775353897003,-500.0,0.00035835,9]
[419752541,1775353897013,-1182.69,0.00035835,9]
[419752542,1775353897022,-500.0,0.00035835,9]
[419752543,1775353897031,-500.0,0.00035835,9]
[419752544,1775353897041,-500.0,0.00035835,9]
[419752545,1775353897050,-500.0,0.00035835,9]
[419752546,1775353897059,-500.0,0.00035835,2]
[419752547,1775353897069,-500.0,0.00035835,9]
[419752548,1775353897078,-154.09166242,0.00035835,9]
[419752549,1775353897087,-908.3,0.00035835,9]
[419752550,1775353897097,-500.0,0.00035835,9]
[419752551,1775353897105,-500.0,0.00035835,9]
[419752552,1775353897115,-1131.52,0.00035835,9]
[419752553,1775353897124,-500.0,0.00035835,9]
[419752554,1775353897134,-681.35,0.00035835,9]
[419752555,1775353897143,-500.0,0.00035835,9]
[419752556,1775353897153,-500.0,0.00035835,9]
[419752557,1775353897162,-500.0,0.00035835,9]
[419752558,1775353897171,-563.5,0.00035835,9]
[419752559,1775353897180,-557.98,0.00035835,9]
[419752560,1775353897189,-677.45,0.00035835,9]
[419752561,1775353897198,-560.93,0.00035835,9]
[419752562,1775353897207,-573.01,0.00035835,9]
[419752563,1775353897217,-1401.88,0.00035835,9]
[419752564,1775353897226,-500.0,0.00035835,9]
[419752565,1775353897236,-1117.6,0.00035835,9]
[419752566,1775353897245,-500.0,0.00035835,9]
[419752567,1775353897259,-500.0,0.00035835,9]
[419752568,1775353897278,-500.0,0.00035835,9]
[419752569,1775353897294,-514.23926792,0.00035835,9]
[419752570,1775353897313,-500.0,0.00035835,9]
[419752571,1775353897331,-500.0,0.00035835,9]
[419752572,1775353897349,-534.99,0.00035835,9]
[419752573,1775353897364,-944.87,0.00035835,9]
[419752574,1775353897379,-500.0,0.00035835,9]
[419752575,1775353897398,-500.0,0.00035835,9]
[419752576,1775353897416,-771.12,0.00035835,9]
[419752577,1775353897433,-1033.85,0.00035835,9]
[419752578,1775353897446,-661.82,0.00035835,9]
[419752579,1775353897462,-500.0,0.00035835,9]
[419752580,1775353897482,-500.0,0.00035835,2]
[419752581,1775353897499,-1074.83,0.00035835,9]
[419752582,1775353897513,-1208.46,0.00035835,9]
[419752583,1775353897528,-527.29,0.00035835,9]
[419752584,1775353897543,-620.02,0.00035835,9]
[419752585,1775353897560,-549.5,0.00035835,9]
[419752586,1775353897576,-500.0,0.00035835,9]
[419752587,1775353897591,-500.0,0.00035835,9]
[419752588,1775353897607,-500.0,0.00035835,9]
[419752589,1775353897623,-608.24,0.00035835,9]
[419752590,1775353897637,-1089.31,0.00035835,9]
[419752591,1775353897653,-1532.9,0.00035835,9]
[419752592,1775353897668,-566.32,0.00035835,9]
[419752593,1775353897683,-168.77447302,0.00035835,9]
[419752594,1775353897698,-1542.53,0.00035835,9]
[419752595,1775353897715,-500.0,0.00035835,9]
[419752596,1775353897730,-500.0,0.00035835,9]
[419752597,1775353897746,-500.0,0.00035835,9]
[419752598,1775353897761,-500.0,0.00035835,9]
[419752599,1775353897776,-1835.06,0.00035835,9]
[419752600,1775353897792,-500.0,0.00035835,9]
[419752601,1775353897807,-930.05,0.00035835,9]
[419752602,1775353897822,-500.0,0.00035835,9]
[419752603,1775353897838,-500.0,0.00035835,9]
[419752604,1775353897852,-882.83,0.00035835,9]
[419752605,1775353897867,-2962.35,0.00035835,9]
[419752606,1775353897881,-500.0,0.00035835,9]
[419752607,1775353897897,-514.84,0.00035835,9]
[419752608,1775353897912,-1344.29,0.00035835,9]
[419752609,1775353897927,-726.58,0.00035835,9]
[419752610,1775353897942,-500.0,0.00035835,9]
[419752611,1775353897956,-500.0,0.00035835,9]
[419752612,1775353897970,-1917.29,0.00035835,9]
[419752613,1775353897984,-1090.95,0.00035835,9]
[419752614,1775353898000,-1110.64,0.00035835,9]
[419752615,1775353898015,-500.0,0.00035835,9]
[419752616,1775353898030,-500.0,0.00035835,9]
[419752617,1775353898045,-1806.89,0.00035835,4]
[419752618,1775353898067,-500.0,0.00035835,9]
[419752619,1775353898083,-500.0,0.00035835,9]
[419752620,1775353898098,-694.01,0.00035835,9]
[419752621,1775353898113,-500.0,0.00035835,9]
[419752622,1775353898128,-1276.54,0.00035835,9]
[419752623,1775353898143,-1257.81,0.00035835,9]
[419752624,1775353898159,-500.0,0.00035835,9]
[419752625,1775353898174,-500.0,0.00035835,9]
[419752626,1775353898190,-500.0,0.00035835,9]
[419752627,1775353898205,-500.0,0.00035835,9]
[419752628,1775353898221,-500.0,0.00035835,9]
[419752629,1775353898237,-415.73558199,0.00035835,9]
[419752630,1775353898253,-869.89,0.00035835,9]
[419752631,1775353898268,-500.0,0.00035835,9]
[419752632,1775353898283,-2840.53,0.00035835,9]
[419752633,1775353898298,-1622.44,0.00035835,9]
[419752634,1775353898313,-2043.02,0.00035835,9]
[419752635,1775353898328,-500.0,0.00035835,9]
[419752636,1775353898343,-605.32,0.00035835,9]
[419752637,1775353898357,-2058.21,0.00035835,9]
[419752638,1775353898372,-500.0,0.00035835,9]
[419752639,1775353898388,-518.77,0.00035835,9]
[419752640,1775353898404,-367.49938653,0.00035835,9]
[419752641,1775353898419,-1239.52,0.00035835,9]
[419752642,1775353898435,-811.59,0.00035835,9]
[419752643,1775353898450,-1285.78,0.00035835,9]
[419752644,1775353898464,-837.02,0.00035835,9]
[419752645,1775353898479,-562.72,0.00035835,9]
[419752646,1775353898496,-500.0,0.00035835,9]
[419752647,1775353898512,-500.0,0.00035835,9]
[419752648,1775353898527,-500.0,0.00035835,9]
[419752649,1775353898542,-1406.9,0.00035835,9]
[419752650,1775353898557,-509.29,0.00035835,9]
[419752651,1775353898573,-1330.71,0.00035835,9]
[419752652,1775353898589,-1752.31,0.00035835,9]
[419752653,1775353898604,-601.4,0.00035835,9]
[419752654,1775353898619,-154.15992716,0.00035835,9]
[419752655,1775353898634,-1117.04,0.00035835,9]
[419752656,1775353898648,-503.43616596,0.00035835,9]
[419752657,1775353898664,-500.0,0.00035835,9]
[419752658,1775353898679,-967.5,0.00035835,9]
[419752659,1775353898694,-1405.74,0.00035835,9]
[419752660,1775353898710,-500.0,0.00035835,9]
[419752661,1775353898724,-603.37,0.00035835,9]
[419752662,1775353898739,-500.0,0.00035835,9]
[419752663,1775353898754,-840.34,0.00035835,9]
[419752664,1775353898769,-665.18,0.00035835,9]
[419752665,1775353898784,-592.68,0.00035835,9]
[419752666,1775353898800,-757.19,0.00035835,9]
[419752667,1775353898815,-981.56,0.00035835,9]
[419752668,1775353898830,-635.0402256,0.00035835,9]
[419752669,1775353898845,-500.0,0.00035835,9]
[419752670,1775353898860,-592.96,0.00035835,9]
[419752671,1775353898875,-500.0,0.00035835,9]
[419752672,1775353898891,-1204.0,0.00035835,9]
[419752673,1775353898906,-1216.81,0.00035835,9]
[419752674,1775353898921,-500.0,0.00035835,9]
[419752675,1775353898936,-500.0,0.00035835,9]
[419752676,1775353898952,-1143.95,0.00035835,9]
[419752677,1775353898968,-502.7649296,0.00035835,9]
[419752678,1775353898983,-1171.72,0.00035835,9]
[419752679,1775353898998,-1310.78,0.00035835,9]
[419752680,1775353899012,-600.62,0.00035835,9]
[419752681,1775353899027,-500.0,0.00035835,9]
[419752682,1775353899042,-824.71,0.00035835,9]
[419752683,1775353899058,-500.0,0.00035835,9]
[419752684,1775353899074,-500.0,0.00035835,9]
[419752685,1775353899089,-500.0,0.00035835,9]
[419752686,1775353899104,-500.0,0.00035835,9]
[419752687,1775353899118,-500.0,0.00035835,9]
[419752688,1775353899133,-679.18,0.00035835,9]
[419752689,1775353899149,-713.52,0.00035835,9]
[419752690,1775353899164,-541.46,0.00035835,9]
[419752691,1775353899179,-500.0,0.00035835,9]
[419752692,1775353899194,-500.0,0.00035835,9]
[419752693,1775353899209,-500.0,0.00035835,9]
[419752694,1775353899465,-1265.28,0.00035835,9]
[419752695,1775353899476,-529.99,0.00035835,9]
[419752696,1775353899486,-2096.63,0.00035835,9]
[419752697,1775353899496,-500.0,0.00035835,9]
[419752698,1775353899505,-1678.25,0.00035835,9]
[419752699,1775353899514,-912.58,0.00035835,9]
[419752700,1775353899524,-1316.7,0.00035835,9]
[419752701,1775353899533,-1002.17,0.00035835,9]
[419752702,1775353899542,-608.20142042,0.00035835,9]
[419752703,1775353899552,-1280.85,0.00035835,9]
[419752704,1775353899562,-708.55,0.00035835,9]
[419752705,1775353899573,-500.0,0.00035835,9]
[419752706,1775353899583,-1308.76,0.00035835,9]
[419752707,1775353899592,-500.0,0.00035835,9]
[419752708,1775353899602,-550.71,0.00035835,9]
[419752709,1775353899611,-500.0,0.00035835,9]
[419752710,1775353899620,-500.0,0.00035835,9]
[419752711,1775353899630,-507.69,0.00035835,9]
[419752712,1775353899639,-566.7957018,0.00035835,9]
[419752713,1775353899648,-508.86,0.00035835,9]
[419752714,1775353899658,-250.3830867,0.00035835,9]
[419752715,1775353899668,-500.0,0.00035835,9]
[419752716,1775353899677,-500.0,0.00035835,9]
[419752717,1775353899687,-1447.95,0.00035835,9]
[419752718,1775353899696,-570.54,0.00035835,9]
[419752719,1775353899705,-500.0,0.00035835,9]
[419752720,1775353899715,-2220.24,0.00035835,9]
[419752721,1775353899724,-1134.1,0.00035835,9]
[419752722,1775353899734,-1096.27,0.00035835,9]
[419752723,1775353899743,-1312.71,0.00035835,9]
[419752724,1775353899752,-500.0,0.00035835,9]
[419752725,1775353899762,-500.0,0.00035835,9]
[419752726,1775353899771,-1130.64,0.00035835,9]
[419752727,1775353899780,-519.56,0.00035835,9]
[419752728,1775353899790,-551.42,0.00035835,9]
[419752729,1775353899799,-500.0,0.00035835,9]
[419752730,1775353899808,-1648.3,0.00035835,9]
[419752731,1775353899818,-500.0,0.00035835,9]
[419752732,1775353899828,-500.0,0.00035835,9]
[419752733,1775353899838,-500.0,0.00035835,9]
[419752734,1775353899848,-539.33,0.00035835,9]
[419752735,1775353899857,-500.0,0.00035835,9]
[419752736,1775353899866,-500.0,0.00035835,9]
[419752737,1775353899875,-1345.08,0.00035835,9]
[419752738,1775353899885,-500.0,0.00035835,9]
[419752739,1775353899894,-776.44,0.00035835,9]
[419752740,1775353899903,-500.0,0.00035835,9]
[419752741,1775353899913,-517.42,0.00035835,9]
[419752742,1775353899923,-1048.94,0.00035835,9]
[419752743,1775353899932,-1199.66,0.00035835,9]
[419752744,1775353899941,-500.0,0.00035835,9]
[419752745,1775353899951,-1416.41,0.00035835,9]
[419752746,1775353899960,-1035.67,0.00035835,9]
[419752747,1775353899970,-500.0,0.00035835,9]
[419752748,1775353899979,-500.0,0.00035835,9]
[419752749,1775353899989,-500.0,0.00035835,9]
[419752750,1775353899998,-1130.14,0.00035835,9]
[419752751,1775353900007,-500.0,0.00035835,9]
[419752752,1775353900017,-365.06471848,0.00035835,9]
[419752753,1775353900026,-1104.18,0.00035835,9]
[419752754,1775353900035,-864.21,0.00035835,9]
[419752755,1775353900045,-500.0,0.00035835,9]
[419752756,1775353900054,-871.41,0.00035835,9]
[419752757,1775353900065,-500.0,0.00035835,9]
[419752758,1775353900074,-1067.06,0.00035835,9]
[419752759,1775353900084,-500.0,0.00035835,9]
[419752760,1775353900094,-500.0,0.00035835,9]
[419752761,1775353900103,-1205.38,0.00035835,9]
[419752762,1775353900113,-500.0,0.00035835,9]
[419752763,1775353900123,-710.72,0.00035835,9]
[419752764,1775353900132,-500.0,0.00035835,9]
[419752765,1775353900141,-500.0,0.00035835,9]
[419752766,1775353900151,-554.59,0.00035835,9]
[419752767,1775353900161,-500.0,0.00035835,9]
[419752768,1775353900170,-500.0,0.00035835,9]
[419752769,1775353900179,-500.0,0.00035835,9]
[419752770,1775353900189,-500.0,0.00035835,9]
[419752771,1775353900199,-628.28,0.00035835,9]
[419752772,1775353900208,-500.0,0.00035835,9]
[419752773,1775353900217,-500.0,0.00035835,9]
[419752774,1775353900227,-500.0,0.00035835,9]
[419752775,1775353900236,-500.0,0.00035835,9]
[419752776,1775353900246,-1788.09,0.00035835,9]
[419752777,1775353900255,-1453.27,0.00035835,9]
[419752778,1775353900264,-862.51,0.00035835,9]
[419752779,1775353900275,-710.89,0.00035835,9]
[419752780,1775353900284,-1605.08,0.00035835,9]
[419752781,1775353900294,-399.18831177,0.00035835,9]
[419752782,1775353900304,-500.0,0.00035835,9]
[419752783,1775353900313,-670.22,0.00035835,9]
[419752784,1775353900323,-500.0,0.00035835,9]
[419752785,1775353900332,-1691.5,0.00035835,9]
[419752786,1775353900343,-607.31,0.00035835,9]
[419752787,1775353900352,-500.0,0.00035835,9]
[419752788,1775353900362,-1224.7,0.00035835,9]
[419752789,1775353900372,-500.0,0.00035835,9]
[419752790,1775353900382,-500.0,0.00035835,9]
[419752791,1775353900391,-515.79,0.00035835,9]
[419752792,1775353900400,-500.0,0.00035835,9]
[419752793,1775353900410,-500.0,0.00035835,9]
[419752794,1775353900420,-741.31,0.00035835,9]
[419752795,1775353900429,-1564.62,0.00035835,9]
[419752796,1775353900438,-500.0,0.00035835,9]
[419752797,1775353900448,-771.83,0.00035835,9]
[419752798,1775353900457,-609.88954634,0.00035835,9]
[419752799,1775353900467,-500.0,0.00035835,9]
[419752800,1775353900476,-500.0,0.00035835,9]
[419752801,1775353900486,-673.03,0.00035835,9]
[419752802,1775353900496,-500.0,0.00035835,9]
[419752803,1775353900506,-836.87,0.00035835,9]
[419752804,1775353900515,-1148.23,0.00035835,9]
[419752805,1775353900525,-1146.93,0.00035835,9]
[419752806,1775353900536,-774.75,0.00035835,9]
[419752807,1775353900546,-576.94,0.00035835,9]
[419752808,1775353900555,-500.0,0.00035835,9]
[419752809,1775353900565,-766.02,0.00035835,9]
[419752810,1775353900574,-500.0,0.00035835,9]
[419752811,1775353900583,-707.67,0.00035835,9]
[419752812,1775353900593,-500.0,0.00035835,9]
[419752813,1775353900602,-679.76,0.00035835,9]
[419752814,1775353900611,-981.99,0.00035835,9]
[419752815,1775353900621,-500.0,0.00035835,9]
[419752816,1775353900630,-310.76694106,0.00035835,9]
[419752817,1775353900639,-1056.7,0.00035835,9]
[419752818,1775353900649,-620.79034829,0.00035835,9]
[419752819,1775353900658,-500.0,0.00035835,9]
[419752820,1775353900668,-1536.24,0.00035835,9]
[419752821,1775353900677,-1227.27,0.00035835,9]
[419752822,1775353900687,-716.31,0.00035835,9]
[419752823,1775353900698,-500.0,0.00035835,9]
[419752824,1775353900708,-853.38,0.00035835,9]
[419752825,1775353900720,-500.0,0.00035835,9]
[419752826,1775353900729,-500.0,0.00035835,9]
[419752827,1775353900739,-500.0,0.00035835,9]
[419752828,1775353900748,-1440.21,0.00035835,9]
[419752829,1775353900758,-1383.88,0.00035835,9]
[419752830,1775353900767,-530.63,0.00035835,9]
[419752831,1775353900776,-1349.47,0.00035835,9]
[419752832,1775353900786,-1386.53,0.00035835,9]
[419752833,1775353900796,-758.64,0.00035835,9]
[419752834,1775353900806,-1153.04,0.00035835,9]
[419752835,1775353900815,-2276.94,0.00035835,9]
[419752836,1775353900825,-500.0,0.00035835,9]
[419752837,1775353900835,-596.46,0.00035835,9]
[419752838,1775353900845,-500.0,0.00035835,9]
[419752839,1775353900855,-500.0,0.00035835,2]
[419752840,1775353900865,-500.0,0.00035835,9]
[419752841,1775353900875,-500.0,0.00035835,9]
[419752842,1775353900884,-500.0,0.00035835,9]
[419752843,1775353900893,-500.0,0.00035835,2]
[419752844,1775353900903,-500.0,0.00035835,9]
[419752845,1775353900913,-500.0,0.00035835,9]
[419752846,1775353900923,-1239.84,0.00035835,9]
[419752847,1775353900932,-500.0,0.00035835,9]
[419752848,1775353900942,-500.0,0.00035835,9]
[419752849,1775353900951,-254.96484014,0.00035835,9]
[419752850,1775353900961,-1055.2,0.00035835,9]
[419752851,1775353900970,-500.0,0.00035835,9]
[419752852,1775353900980,-573.90639972,0.00035835,9]
[419752853,1775353900991,-500.0,0.00035835,9]
[419752854,1775353901001,-441.48348398,0.00035835,9]
[419752855,1775353901011,-500.0,0.00035835,9]
[419752856,1775353901020,-1287.24,0.00035835,9]
[419752857,1775353901030,-500.0,0.00035835,9]
[419752858,1775353901040,-638.03,0.00035835,9]
[419752859,1775353901049,-3008.33,0.00035835,9]
[419752860,1775353901058,-2071.14,0.00035835,9]
[419752861,1775353901068,-803.7,0.00035835,9]
[419752862,1775353901077,-619.8,0.00035835,9]
[419752863,1775353901086,-2041.08,0.00035835,9]
[419752864,1775353901096,-500.0,0.00035835,9]
[419752865,1775353901106,-500.0,0.00035835,9]
[419752866,1775353901116,-500.0,0.00035835,9]
[419752867,1775353901125,-508.25,0.00035835,9]
[419752868,1775353901135,-510.19,0.00035835,9]
[419752869,1775353901144,-500.0,0.00035835,9]
[419752870,1775353901154,-500.0,0.00035835,9]
[419752871,1775353901163,-500.0,0.00035835,9]
[419752872,1775353901172,-1051.89,0.00035835,9]
[419752873,1775353901182,-526.68,0.00035835,9]
[419752874,1775353901191,-2437.32,0.00035835,9]
[419752875,1775353901200,-3260.49,0.00035835,9]
[419752876,1775353901209,-704.89,0.00035835,9]
[419752877,1775353901219,-500.0,0.00035835,9]
[419752878,1775353901228,-500.0,0.00035835,9]
[419752879,1775353901238,-500.0,0.00035835,9]
[419752880,1775353901247,-955.46,0.00035835,9]
[419752881,1775353901257,-500.0,0.00035835,9]
[419752882,1775353901266,-500.0,0.00035835,9]
[419752883,1775353901276,-500.0,0.00035835,9]
[419752884,1775353901285,-500.0,0.00035835,9]
[419752885,1775353901295,-500.0,0.00035835,9]
[419752886,1775353901304,-500.0,0.00035835,9]
[419752887,1775353901314,-500.0,0.00035835,9]
[419752888,1775353901323,-500.0,0.00035835,9]
[419752889,1775353901333,-204.77,0.00035835,9]
[419752890,1775353901343,-500.0,0.00035835,9]
[419752891,1775353901352,-500.0,0.00035835,9]
[419752892,1775353901361,-500.0,0.00035835,9]
[419752893,1775353901371,-1358.66,0.00035835,9]
[419752894,1775353901380,-592.08,0.00035835,9]
[419752895,1775353901390,-1697.67,0.00035835,9]
[419752896,1775353901399,-500.0,0.00035835,9]
[419752897,1775353901409,-500.0,0.00035835,9]
[419752898,1775353901419,-500.0,0.00035835,9]
[419752899,1775353901428,-500.0,0.00035835,9]
[419752900,1775353901439,-500.0,0.00035835,9]
[419752901,1775353901448,-500.0,0.00035835,9]
[419752902,1775353901458,-1091.66,0.00035835,9]
[419752903,1775353901468,-500.0,0.00035835,9]
[419752904,1775353901477,-544.04,0.00035835,9]
[419752905,1775353901487,-831.44,0.00035835,9]
[419752906,1775353901497,-1214.91,0.00035835,9]
[419752907,1775353901507,-2866.62,0.00035835,9]
[419752908,1775353901516,-500.0,0.00035835,9]
[419752909,1775353901527,-3539.01,0.00035835,9]
[419752910,1775353901536,-500.0,0.00035835,9]
[419752911,1775353901546,-500.0,0.00035835,9]
[419752912,1775353901555,-1329.7,0.00035835,9]
[419752913,1775353901565,-670.83,0.00035835,9]
[419752914,1775353901574,-500.0,0.00035835,9]
[419752915,1775353901583,-1358.09,0.00035835,9]
[419752916,1775353901592,-1136.28,0.00035835,9]
[419752917,1775353901602,-500.0,0.00035835,9]
[419752918,1775353901612,-500.0,0.00035835,9]
[419752919,1775353901621,-1461.21,0.00035835,9]
[419752920,1775353901630,-1254.14,0.00035835,9]
[419752921,1775353901640,-500.0,0.00035835,9]
[419752922,1775353901650,-500.0,0.00035835,9]
[419752923,1775353901659,-698.81,0.00035835,9]
[419752924,1775353901669,-2502.2,0.00035835,9]
[419752925,1775353901678,-2327.75,0.00035835,9]
[419752926,1775353901689,-637.21,0.00035835,9]
[419752927,1775353901698,-500.0,0.00035835,9]
[419752928,1775353901707,-1634.79,0.00035835,9]
[419752929,1775353901716,-3994.06,0.00035835,9]
[419752930,1775353901726,-1455.03,0.00035835,9]
[419752931,1775353901735,-500.0,0.00035835,9]
[419752932,1775353901744,-500.0,0.00035835,9]
[419752933,1775353901753,-500.0,0.00035835,9]
[419752934,1775353901763,-500.0,0.00035835,9]
[419752935,1775353901772,-500.0,0.00035835,9]
[419752936,1775353901782,-500.0,0.00035835,9]
[419752937,1775353901791,-685.7,0.00035835,9]
[419752938,1775353901800,-1051.5,0.00035835,9]
[419752939,1775353901810,-1299.88,0.00035835,9]
[419752940,1775353901819,-500.0,0.00035835,9]
[419752941,1775353901828,-500.0,0.00035835,9]
[419752942,1775353901838,-939.47,0.00035835,9]
[419752943,1775353901847,-500.0,0.00035835,9]
[419752944,1775353901856,-1193.4,0.00035835,9]
[419752945,1775353901865,-644.0,0.00035835,9]
[419752946,1775353901875,-3084.67,0.00035835,9]
[419752947,1775353901885,-1667.1,0.00035835,9]
[419752948,1775353901894,-437.77,0.00035835,9]
[419752949,1775353901903,-500.0,0.00035835,9]